[Event "Austrian Bundesliga 2023-24"]
[Site "Austria"]
[Date "2024.03.22"]
[Round "9.3"]
[White "Svane, Rasmus"]
[Black "Halvax, Georg"]
[Result "1/2-1/2"]
[ECO "D38"]
[WhiteElo "2623"]
[BlackElo "2452"]
[Annotator "TA"]
[PlyCount "129"]
[EventDate "2023.10.21"]
[EventType "team-tourn"]
[EventCountry "AUT"]
[SourceTitle "playchess.com"]
[Source "ChessBase"]
[SourceQuality "1"]
[TimeControl "40/5400+30:1800+30"]

{[%evp 11,129,13,19,11,21,6,11,14,5,4,0,18,10,10,9,30,14,15,34,20,29,26,28,27,33,39,27,28,31,31,31,31,30,11,15,7,13,11,17,8,15,18,23,18,14,12,22,23,26,27,54,52,52,45,59,61,61,61,52,39,52,52,52,52,52,50,56,62,59,59,61,54,54,38,35,35,37,37,38,17,17,17,19,16,18,21,30,25,20,30,18,0,0,0,0,0,0,0,0,0,16,16,16,16,16,16,16,16,22,22,16,16,22,22,22,22,22,22,22,0]} 1. d4 {[%emt 0:00:06]} d5 {[%emt 0:00:08]} 2. c4 {[%emt 0:01:52]} e6 {[%emt 0:00:09]} 3. Nf3 {[%emt 0:02:07]} Nf6 {[%emt 0:00:10]} 4. Nc3 {[%emt 0:00:13]} Bb4 {[%emt 0:00:12]} 5. Qa4+ {[%emt 0:01:42]} Nc6 {[%emt 0:00:09]} 6. e3 {[%emt 0:00:06]} O-O {[%emt 0:00:16]} 7. Qc2 {[%emt 0:00:03]} Re8 {[%emt 0:00:26]} 8. Bd2 {[%emt 0:03:10]} Bf8 {[%emt 0:00:35]} 9. Be2 {[%emt 0:04:44]} e5 {[%emt 0:15:13]} 10. cxd5 {[%emt 0:14:39]} Nb4 {[%emt 0:01:17]} 11. Qb3 {[%emt 0:00:14]} exd4 {[%emt 0:05:47]} 12. Nxd4 {[%emt 0:00:09]} Nbxd5 {[%emt 0:00:31][%cal Od5f4]} 13. Bc4 {[%emt 0:06:22][%cal Rc3d5]} c6 {[%emt 0:04:02]} 14. O-O {[%emt 0:07:58]} Bc5 {[%emt 0:06:32][%cal Bf8c5,Bc5b6,Bb6a5,Ba5c7][%mdl 32]} 15. Nxd5 {[%emt 0:04:12]} Nxd5 {[%emt 0:05:44]} 16. Bc3 {[%emt 0:02:30]} Qd7 {[%emt 0:05:31]} 17. Bxd5 {[%emt 0:04:23]} Qxd5 {[%emt 0:02:48]} 18. Qxd5 {[%emt 0:00:12]} cxd5 {[%emt 0:00:02]} 19. Nb5 {[%emt 0:07:32]} Bb6 {[%emt 0:07:35] Dodges Nc7} 20. Rfd1 {[%emt 0:04:45]} Be6 {[%emt 0:14:22]} 21. Bd4 {[%emt 0:02:00] [#] And now Bxb6 would win.} a6 {[%emt 0:11:24]} 22. Nc3 {[%emt 0:15:14]} Ba5 {[%emt 0:00:40]} 23. Ne2 {[%emt 0:01:29]} Rac8 {[%emt 0:03:08]} 24. Bc3 {[%emt 0:00:13]} Bc7 {[%emt 0:00:15]} 25. Rd2 {[%emt 0:00:41]} Red8 {[%emt 0:04:14]} 26. h3 {[%emt 0:01:07]} h6 {[%emt 0:04:11]} 27. Nd4 {[%emt 0:01:45]} Bb6 {[%emt 0:02:21]} 28. Rad1 {[%emt 0:00:07]} Bxd4 {[%emt 0:00:41]} 29. Rxd4 {[%emt 0:00:33]} Re8 {[%emt 0:00:23]} 30. a4 {[%emt 0:05:00][%cal Ba2a4,Ba4a5][%mdl 32]} Rc4 {[%emt 0:02:48]} 31. Rxc4 {[%emt 0:00:12]} dxc4 $14 {[%emt 0:00:06][%mdl 4096] Endgame. KRB-KRB} 32. a5 {[%emt 0:03:36]} Re7 {[%emt 0:00:47]} 33. Rd8+ {[%emt 0:00:07]} Kh7 {[%emt 0:00:02]} 34. e4 {[%emt 0:00:33] White is more active.} f6 {[%emt 0:02:03]} ({Of course not} 34... Rd7 35. Rf8 $16) 35. g4 {[%emt 0:01:55]} h5 {[%emt 0:00:43]} 36. f3 {[%emt 0:00:15]} hxg4 {[%emt 0:00:07]} 37. hxg4 {[%emt 0:00:04]} Bd7 {[%emt 0:00:51]} 38. Kf2 {[%emt 0:01:31]} Bc6 {[%emt 0:00:06]} 39. Rd4 {[%emt 0:02:14]} Bb5 {[%emt 0:00:11]} 40. Rd5 {[%emt 0:00:00]} Kg6 {[%emt 0:00:00]} 41. Rc5 {[%emt 0:01:33]} Kf7 {[%emt 0:07:04]} 42. e5 {[%emt 0:04:47]} fxe5 {[%emt 0:05:17]} 43. Bxe5 {[%emt 0:00:06]} Rd7 {[%emt 0:06:23]} 44. Bc3 {[%emt 0:00:08]} Rd3 {[%emt 0:01:36]} 45. Rf5+ {[%emt 0:07:36]} Kg8 $1 {[%emt 0:00:53]} 46. f4 {[%emt 0:03:23]} Bc6 {[%emt 0:01:42]} 47. Be5 {[%emt 0:04:37]} g6 {[%emt 0:02:11]} 48. Rf6 {[%emt 0:08:44]} Be4 {[%emt 0:00:02]} 49. Bc3 {[%emt 0:00:13] [#] Re6 would now be deadly.} Rf3+ {[%emt 0:01:30]} 50. Ke2 {[%emt 0:00:08][%cal Of6g6] Hoping for Rxg6+!} Rg3 {[%emt 0:01:10]} 51. Re6 {[%emt 0:01:08] The position is equal.} Bd3+ {[%emt 0:01:02]} 52. Kf2 {[%emt 0:00:06]} Rxg4 {[%emt 0:00:13]} 53. Kf3 {[%emt 0:00:38][%cal Oe6b6]} Rh4 $1 {[%emt 0:04:08]} 54. Re8+ {[%emt 0:00:16]} Kf7 {[%emt 0:00:03]} 55. Rb8 {[%emt 0:00:13]} Rh3+ {[%emt 0:00:27]} 56. Kg2 {[%emt 0:00:09]} Re3 {[%emt 0:00:07]} 57. Rxb7+ {[%emt 0:00:11]} Re7 {[%emt 0:00:02]} 58. Rb8 {[%emt 0:00:49]} Re8 {[%emt 0:01:11]} 59. Rb4 {[%emt 0:00:22]} Re6 {[%emt 0:00:47]} 60. Kg3 {[%emt 0:00:36]} Re3+ {[%emt 0:00:19]} 61. Kf2 {[%emt 0:00:46]} Re6 {[%emt 0:00:14]} 62. Kf3 {[%emt 0:00:15]} Be2+ {[%emt 0:02:01]} 63. Kg3 {[%emt 0:00:08]} Bd3 {[%emt 0:00:22]} 64. Rb7+ {[%emt 0:05:34]} Re7 {[%emt 0:00:10]} 65. Rxe7+ {[%emt 0:00:04] Weighted Error Value: White=0.03 (flawless) /Black=0.03 (flawless) .  Inaccurate:     	---       	Black=1      OK:         	White=32    	Black=27     Best:        	White=2     	Black=4      Strong:       	---       	Black=2} 1/2-1/2

[Event "Austrian Bundesliga 2023-24"]
[Site "Austria"]
[Date "2024.03.22"]
[Round "9.4"]
[White "Genser, Harald"]
[Black "Svane, Frederik"]
[Result "0-1"]
[ECO "D02"]
[WhiteElo "2263"]
[BlackElo "2617"]
[Annotator "TA"]
[PlyCount "118"]
[EventDate "2023.10.21"]
[EventType "team-tourn"]
[EventCountry "AUT"]
[SourceTitle "playchess.com"]
[Source "ChessBase"]
[SourceQuality "1"]
[TimeControl "40/5400+30:1800+30"]

{[%evp 10,118,8,4,15,24,14,27,20,10,7,5,11,4,0,0,5,-11,0,-13,8,-14,18,-23,7,0,0,0,0,-15,-15,-29,-22,-30,-16,-32,-21,-18,-14,-36,-34,-42,-29,-51,-19,-88,-39,-52,-41,-52,-44,-44,-44,-44,-44,-44,-44,-44,-44,-61,-44,-56,-44,-53,-44,-44,-44,-54,-54,-67,-52,-66,-66,-66,-66,-65,-56,-108,-98,-113,-120,-93,-89,-116,-116,-104,-116,-129,-114,-130,-120,-167,-167,-189,-188,-210,-201,-204,-194,-221,-197,-196,-197,-219,-219,-481,-460,-470,-467,-759,-762]} 1. d4 {[%emt 0:00:05]} d5 {[%emt 0:00:37]} 2. Nf3 {[%emt 0:01:01]} Nf6 {[%emt 0:00:07]} 3. Bf4 {[%emt 0:00:55]} c5 {[%emt 0:00:08]} 4. e3 {[%emt 0:00:59]} e6 {[%emt 0:00:52]} 5. c3 {[%emt 0:01:43]} Be7 {[%emt 0:00:25]} 6. Nbd2 {[%emt 0:03:03]} Nh5 {[%emt 0:00:24]} 7. Bxb8 {[%emt 0:05:32]} Rxb8 {[%emt 0:00:22]} 8. Bb5+ {[%emt 0:05:25]} Kf8 $1 {[%emt 0:00:27] White has an edge.} 9. Ne5 {[%emt 0:02:34]} Nf6 {[%emt 0:04:44]} 10. Bd3 {[%emt 0:02:59]} Nd7 {[%emt 0:16:44]} 11. f4 {[%emt 0:05:46]} g6 {[%emt 0:04:51]} 12. O-O {[%emt 0:06:06]} Kg7 {[%emt 0:00:40]} 13. Qe2 {[%emt 0:07:44]} Qc7 {[%emt 0:04:49]} (13... f6 {simplifies} 14. Nxd7 Bxd7 15. a3 Qb6) 14. Rac1 {[%emt 0:06:40]} b6 {[%emt 0:11:30]} (14... b5 {feels hotter.} 15. e4 dxe4 16. Qxe4 Bb7) 15. Bb5 {[%emt 0:16:37]} Nf6 {[%emt 0:05:19]} (15... a6 {feels hotter.} 16. Bd3 b5 17. e4 Bb7) 16. Nc6 {[%emt 0:02:43]} (16. g4 {looks sharper.} a6 17. Bd3 Nd7 18. Ndf3) 16... Ra8 {[%emt 0:01:36]} (16... a6 $5 17. Ba4 Ra8 18. Nxe7 Qxe7 $11) 17. Nxe7 {[%emt 0:00:23]} Qxe7 {[%emt 0:00:05]} 18. Bd3 {[%emt 0:03:03]} Bb7 {[%emt 0:00:28]} 19. Qf3 {[%emt 0:06:46]} h5 {[%emt 0:02:08]} 20. Rce1 {[%emt 0:01:50]} Rad8 {[%emt 0:01:20]} 21. Qd1 {[%emt 0:01:08]} Bc6 {[%emt 0:06:01]} 22. Qb1 {[%emt 0:00:23]} Qd7 {[%emt 0:04:39]} 23. Nf3 {[%emt 0:01:01]} Bb5 {[%emt 0:00:55]} 24. Qd1 {[%emt 0:02:50]} Bxd3 {[%emt 0:04:30]} (24... h4 {keeps more tension.} 25. Ng5 Qc6 26. Bxb5 Qxb5 27. Qc2 a5) 25. Qxd3 {[%emt 0:00:03]} Qc6 {[%emt 0:02:23]} 26. g3 {[%emt 0:01:47]} a5 {[%emt 0:03:15]} 27. Kg2 {[%emt 0:01:50]} (27. dxc5 $11 bxc5 28. Re2) 27... b5 {[%emt 0:02:45]} (27... c4 $17 28. Qe2 b5) 28. dxc5 {[%emt 0:00:58]} Qxc5 {[%emt 0:00:09]} 29. Qd4 {[%emt 0:01:13]} Rc8 {[%emt 0:00:34]} (29... Qxd4 {simplifies} 30. Nxd4 a4 31. Re2 Rb8) 30. Rc1 {[%emt 0:01:59]} Qxd4 {[%emt 0:04:53]} 31. Nxd4 {[%emt 0:00:56]} Rb8 {[%emt 0:00:11]} 32. Nc6 {[%emt 0:00:33][%csl LRa5,LRb8]} Ra8 {[%emt 0:00:04]} 33. a3 {[%emt 0:00:32]} Rhc8 {[%emt 0:00:36]} 34. Ne5 {[%emt 0:00:53]} Ne4 {[%emt 0:02:17]} 35. Rfd1 {[%emt 0:00:54]} Rc7 {[%emt 0:02:58]} 36. Nd3 {[%emt 0:00:32]} Rac8 {[%emt 0:03:03]} 37. Ra1 {[%emt 0:01:03]} Nd6 {[%emt 0:06:39]} 38. Kf3 {[%emt 0:00:33]} Nc4 $36 {[%emt 0:01:24][%mdl 2048] White is under pressure.} 39. Rab1 {[%emt 0:04:43]} Kf6 {[%emt 0:01:17]} 40. h3 {[%emt 0:00:00]} Rh8 {[%emt 0:00:00] Black is much more active.} 41. Nf2 {[%emt 0:06:45]} Ke7 {[%emt 0:03:10]} 42. e4 {[%emt 0:02:38]} dxe4+ {[%emt 0:06:35]} 43. Kxe4 {[%emt 0:05:23] Black continues to play with concentration.} (43. Nxe4 $15 h4 44. Nf2 (44. g4 f5 $17)) 43... Rd8 {[%emt 0:03:49]} 44. Rxd8 {[%emt 0:00:39]} Kxd8 $17 {[%emt 0:00:04][%mdl 4096] Endgame. KRN-KRN} 45. Rd1+ {[%emt 0:00:20]} Ke7 {[%emt 0:00:53]} 46. Nd3 {[%emt 0:00:45]} Rd7 {[%emt 0:02:00]} 47. Kf3 {[%emt 0:01:49]} a4 {[%emt 0:03:06][%cal Oe6e5]} 48. Ke2 {[%emt 0:01:20]} Rd5 {[%emt 0:02:17]} 49. Rc1 {[%emt 0:08:49]} f6 {[%emt 0:02:53]} 50. Rc2 {[%emt 0:00:10] [#]} (50. Rb1 $17 {keeps fighting.}) 50... e5 $1 $19 {[%emt 0:00:11]} 51. fxe5 {[%emt 0:00:40]} fxe5 {[%emt 0:00:04]} 52. Nf2 {[%emt 0:01:30]} Ke6 {[%emt 0:01:03]} 53. g4 {[%emt 0:03:06]} hxg4 {[%emt 0:01:52]} 54. hxg4 {[%emt 0:01:27]} Rd8 {[%emt 0:00:18]} 55. Ne4 {[%emt 0:00:35]} Rh8 {[%emt 0:00:34] [#] ...Rh2+ would now be deadly.} 56. Kf3 {[%emt 0:00:36]} Rh1 {[%emt 0:00:56]} 57. Nf2 $2 {[%emt 0:00:54]} (57. Re2) 57... Re1 {[%emt 0:00:40] Black is clearly winning.} 58. Nh3 {[%emt 0:02:25]} Kd5 {[%emt 0:00:35]} 59. Kf2 {[%emt 0:02:22]} (59. Rh2 $142 Rb1 60. Nf2) 59... Rb1 {[%emt 0:00:51] Weighted Error Value: White=0.21 (precise) /Black=0.08 (flawless) .  Mistake:       	White=5     	Black=1      Inaccurate:     	White=1     	Black=3      OK:         	White=15    	Black=19     Best:        	White=1     	Black=1      Strong:       	---       	Black=2} 0-1

[Event "Austrian Bundesliga 2023-24"]
[Site "Austria"]
[Date "2024.03.22"]
[Round "9.5"]
[White "Wagner, Dennis"]
[Black "Hartl, Daniel"]
[Result "1-0"]
[ECO "A11"]
[WhiteElo "2620"]
[BlackElo "2248"]
[Annotator "TA"]
[PlyCount "72"]
[EventDate "2023.10.21"]
[EventType "team-tourn"]
[EventCountry "AUT"]
[SourceTitle "playchess.com"]
[Source "ChessBase"]
[SourceQuality "1"]
[TimeControl "40/5400+30:1800+30"]

{[%evp 18,72,28,6,12,0,39,30,29,31,29,17,38,31,41,40,102,104,102,96,109,102,128,124,167,109,127,120,127,119,117,125,117,117,116,119,208,195,174,187,328,154,197,213,184,64,56,62,74,62,63,33,144,139,341,352,495]} 1. c4 {[%emt 0:00:17]} c6 {[%emt 0:00:06]} 2. Nf3 {[%emt 0:00:09]} d5 {[%emt 0:00:16]} 3. e3 {[%emt 0:00:54]} Nf6 {[%emt 0:00:07]} 4. Nc3 {[%emt 0:00:08]} e6 {[%emt 0:02:51]} 5. b3 {[%emt 0:00:57]} Bd6 {[%emt 0:00:55]} 6. Bb2 {[%emt 0:04:33]} Nbd7 {[%emt 0:01:23]} 7. d4 {[%emt 0:10:36]} b6 {[%emt 0:04:01]} 8. Bd3 {[%emt 0:00:51]} Bb7 {[%emt 0:00:31]} 9. O-O {[%emt 0:00:07]} O-O {[%emt 0:16:51]} 10. Qc2 {[%emt 0:00:06]} h6 {[%emt 0:03:17]} 11. Rad1 {[%emt 0:04:16]} Rc8 {[%emt 0:07:18]} 12. e4 {[%emt 0:08:21]} dxe4 {[%emt 0:02:40] White has an edge.} 13. Nxe4 {[%emt 0:00:37]} Nxe4 {[%emt 0:04:17]} 14. Bxe4 {[%emt 0:00:02]} Qc7 {[%emt 0:04:14]} 15. Rfe1 {[%emt 0:04:05]} Nf6 {[%emt 0:12:23]} 16. Bd3 {[%emt 0:03:29]} c5 {[%emt 0:01:34] [#]} (16... Qe7 $14) 17. d5 $1 $16 {[%emt 0:00:19][%mdl 512]} Rfe8 {[%emt 0:08:02]} 18. Bxf6 {[%emt 0:08:05]} gxf6 {[%emt 0:00:05] Black is weak on the light squares} 19. Qc3 {[%emt 0:00:10]} Kg7 {[%emt 0:04:08]} 20. Bb1 {[%emt 0:09:52]} exd5 {[%emt 0:04:53]} 21. cxd5 {[%emt 0:07:37]} (21. Nh4 $18 {aiming for Nf5+.} Bxh2+ 22. Kf1) 21... Rxe1+ {[%emt 0:02:08]} 22. Rxe1 {[%emt 0:00:08] Black must now prevent Nh4.} Rh8 {[%emt 0:00:04]} (22... Bxd5 23. Qd3 Be6 24. Qh7+ Kf8 25. Bf5 $18 (25. Qxh6+ Ke7 $18)) 23. Nh4 $1 {[%emt 0:06:10]} Bxh2+ {[%emt 0:03:46]} 24. Kh1 {[%emt 0:00:05] Intending Nf5+ and mate.} Be5 {[%emt 0:00:05]} 25. Nf5+ {[%emt 0:00:30][%mdl 1024] White has strong compensation.} Kf8 {[%emt 0:00:09] [#]} 26. Qd2 {[%emt 0:02:58][%cal Od5d6] Hoping for d6!} Bc8 {[%emt 0:03:19]} (26... Bd6 $16) 27. d6 $18 {[%emt 0:02:39]} (27. Nxh6 $2 {perishes.} Kg7 (27... Bf4 $2 28. Qd3 $19) 28. Re4 Rxh6+ $19) 27... Qd8 {[%emt 0:01:26]} 28. Rd1 {[%emt 0:04:54][%cal Be1d1,Bd1d3,Bd3d4][%mdl 32] And now d7 would win.} (28. Nxh6 $2 Qxd6 (28... Kg7 $2 29. Kg1 $19) 29. Qxd6+ Bxd6 $19) 28... Qd7 {[%emt 0:03:57]} (28... Bd7 $142 29. f4 (29. Nxh6 $2 {loses.} f5 $19) 29... Bd4) 29. Be4 {[%emt 0:10:40]} (29. Nxh6 $2 {too greedy.} Kg7 30. Qd3 Rxh6+ $19 (30... Kxh6 $2 31. Kg1 $19)) (29. f4 $18 Bd4 30. Re1) 29... h5 $16 {[%emt 0:01:32][%cal Bh6h5,Bh5h4][%mdl 32]} 30. f4 {[%emt 0:01:07]} Bd4 {[%emt 0:03:33]} 31. Nxd4 {[%emt 0:00:18]} ({White should try} 31. Rc1 $18) 31... cxd4 $14 {[%emt 0:00:04]} 32. Qxd4 {[%emt 0:00:15]} Kg7 {[%emt 0:00:12]} 33. Rd3 $36 {[%emt 0:01:13][%mdl 2048] White has some pressure. White is much more active.} h4 {[%emt 0:02:38] Inhibits Rg3+.} 34. f5 {[%emt 0:00:20] Re3 would now be deadly.} Rd8 {[%emt 0:00:37] [#]} ({Black should play} 34... Qe8 $1 $14) 35. Qf2 $1 $16 {[%emt 0:05:05]} Ba6 $2 {[%emt 0:01:14]} (35... Rh8 $16 {is a better defense.} 36. Qf3 Qe8) 36. Rd4 $18 {[%emt 0:00:53]} Qb5 {[%emt 0:00:38] Weighted Error Value: White=0.22 (precise) /Black=0.32.  Loses game:     	---       	Black=1      Missed win:     	White=1     	---        Mistake:       	White=2     	Black=5      Inaccurate:     	White=1     	Black=2      OK:         	White=9     	Black=9      Best:        	White=4     	Black=3      Strong:       	White=1     	---        Brilliant:      	White=1     	---} (36... Rh8 {keeps fighting.} 37. Qf3 Bc8) 1-0

[Event "Austrian Bundesliga 2023-24"]
[Site "Austria"]
[Date "2024.03.22"]
[Round "9.6"]
[White "Stallinger, Vanessa"]
[Black "Buhmann, Rainer"]
[Result "0-1"]
[ECO "C11"]
[WhiteElo "1873"]
[BlackElo "2568"]
[Annotator "TA"]
[PlyCount "54"]
[EventDate "2023.10.21"]
[EventType "team-tourn"]
[EventCountry "AUT"]
[SourceTitle "playchess.com"]
[Source "ChessBase"]
[SourceQuality "1"]
[TimeControl "40/5400+30:1800+30"]

{[%evp 13,54,4,18,19,35,37,44,0,8,0,29,32,19,0,34,18,23,18,37,31,51,9,5,-18,-27,-31,-39,-33,-28,-50,-43,-50,-34,-50,-50,-66,-59,-80,-44,-161,-154,-659,-655]} 1. e4 {[%emt 0:00:03]} e6 {[%emt 0:00:14]} 2. d4 {[%emt 0:00:21]} d5 {[%emt 0:00:06]} 3. Nc3 {[%emt 0:00:39]} Nf6 {[%emt 0:00:15]} 4. e5 {[%emt 0:03:50]} Nfd7 {[%emt 0:00:08]} 5. f4 {[%emt 0:02:00]} c5 {[%emt 0:00:11]} 6. Nf3 {[%emt 0:00:30]} Nc6 {[%emt 0:00:12]} 7. Be3 {[%emt 0:02:05]} a6 {[%emt 0:00:40][%cal Ba7a6,Ba6a5,Ba5a4][%mdl 32]} 8. Ne2 {[%emt 0:02:35]} a5 {[%emt 0:14:49]} 9. c3 {[%emt 0:10:35]} a4 {[%emt 0:01:05]} 10. Ng3 {[%emt 0:23:23] White is slightly better.} cxd4 {[%emt 0:14:04]} 11. Nxd4 {[%emt 0:06:20]} Nxd4 {[%emt 0:09:15]} 12. Bxd4 {[%emt 0:01:53]} Bc5 {[%emt 0:01:50]} 13. Bb5 {[%emt 0:09:23]} Bxd4 {[%emt 0:10:27]} 14. Qxd4 {[%emt 0:01:08]} Qa5 {[%emt 0:05:06]} 15. Bd3 {[%emt 0:11:07]} Qc5 {[%emt 0:07:17]} 16. O-O {[%emt 0:03:34]} g6 {[%emt 0:05:17]} 17. Rf2 {[%emt 0:04:13]} b6 {[%emt 0:02:57]} 18. Bc2 {[%emt 0:01:26]} a3 {[%emt 0:04:05]} 19. b3 {[%emt 0:00:45]} Qxd4 {[%emt 0:01:26]} 20. cxd4 {[%emt 0:00:00]} Ba6 {[%emt 0:00:10] Repels Bd3} 21. b4 {[%emt 0:05:12]} Bc4 {[%emt 0:05:45]} 22. Bd1 {[%emt 0:03:35]} Ke7 {[%emt 0:00:56]} 23. Rc2 {[%emt 0:00:32]} Rhc8 {[%emt 0:03:03]} 24. Rac1 {[%emt 0:02:41][%cal Og3e4]} b5 {[%emt 0:03:34]} 25. Ne2 {[%emt 0:01:14]} Nb8 {[%emt 0:01:04] [#] Hoping for ...Nc6. Black is more active.} 26. Nc3 {[%emt 0:00:12]} (26. Rd2 $15) 26... Nc6 {[%emt 0:00:39][%csl LRb4,LRd4]} 27. Rb1 {[%emt 0:01:41]} (27. Rd2 $17) 27... Bd3 {[%emt 0:01:48] Weighted Error Value: White=0.62/Black=0.11 (very precise) .  Loses game:     	White=1     	---        Mistake:       	White=1     	---        Inaccurate:     	White=2     	Black=3      OK:         	---       	Black=6      Best:        	---       	Black=2} (27... Nxd4 $2 28. Rd2 Nc6 29. Be2 $19) 0-1

[Event "Austrian Bundesliga 2023-24"]
[Site "Austria"]
[Date "2024.03.22"]
[Round "9.7"]
[White "Pechac, Jergus"]
[Black "Baldauf, Marco"]
[Result "1-0"]
[ECO "B12"]
[WhiteElo "2571"]
[BlackElo "2481"]
[Annotator "TA"]
[PlyCount "59"]
[EventDate "2023.10.21"]
[EventType "team-tourn"]
[EventCountry "AUT"]
[SourceTitle "playchess.com"]
[Source "ChessBase"]
[SourceQuality "1"]
[TimeControl "40/5400+30:1800+30"]

{[%evp 16,59,22,22,29,6,16,2,13,10,12,0,12,12,21,21,22,22,31,11,45,58,57,56,59,11,20,6,27,0,66,58,131,129,143,152,163,158,679,674,654,666,900,875,1258,1193]} 1. e4 {[%emt 0:00:04]} c6 {[%emt 0:00:06][%cal Bc7c6,Bc6c5][%mdl 32]} 2. d4 {[%emt 0:00:06]} d5 {[%emt 0:00:03]} 3. e5 {[%emt 0:00:07]} Bf5 {[%emt 0:00:04]} 4. Nf3 {[%emt 0:00:06]} e6 {[%emt 0:00:03]} 5. Be2 {[%emt 0:00:07]} c5 {[%emt 0:01:09]} 6. c3 {[%emt 0:00:26]} Nc6 {[%emt 0:00:08]} 7. O-O {[%emt 0:00:07]} Bg4 {[%emt 0:01:46]} 8. Nbd2 {[%emt 0:00:47]} cxd4 {[%emt 0:00:55]} 9. cxd4 {[%emt 0:00:20]} a5 {[%emt 0:00:37]} 10. h3 {[%emt 0:00:07]} Bh5 {[%emt 0:00:05]} 11. Nb1 {[%emt 0:00:06][%cal Bd2b1,Bb1c3,Bc3b5][%mdl 32]} Bxf3 {[%emt 0:00:18] The position is equal.} 12. Bxf3 {[%emt 0:00:07]} Nge7 {[%emt 0:00:23]} 13. Bg4 {[%emt 0:00:09]} g6 {[%emt 0:00:14]} 14. Nc3 {[%emt 0:02:24]} h5 {[%emt 0:00:56]} 15. Be2 {[%emt 0:01:56]} Nf5 {[%emt 0:03:19]} 16. Nb5 {[%emt 0:01:26]} Be7 {[%emt 0:18:19]} 17. Be3 {[%emt 0:02:48]} Kf8 {[%emt 0:06:04]} 18. Bd3 {[%emt 0:03:06]} Kg7 {[%emt 0:14:16]} 19. Bxf5 {[%emt 0:05:00]} exf5 {[%emt 0:00:03]} 20. Qd2 {[%emt 0:11:16]} (20. Nc3 $14 {is superior.}) 20... a4 $11 {[%emt 0:09:53]} 21. Rac1 {[%emt 0:02:39]} Qa5 {[%emt 0:00:55]} 22. Nc3 {[%emt 0:01:13]} Rhc8 {[%emt 0:07:20]} ({Black should play} 22... a3 $11) 23. a3 $1 $14 {[%emt 0:03:33]} Nd8 {[%emt 0:01:24] [#]} (23... Qd8 $14) 24. g4 $1 $16 {[%emt 0:08:20][%mdl 512]} fxg4 {[%emt 0:05:02]} (24... hxg4 25. hxg4) 25. hxg4 {[%emt 0:01:01]} hxg4 {[%emt 0:02:36] [#]} 26. f4 $1 {[%emt 0:01:49] And now f5 would win.} Ne6 $2 {[%emt 0:11:14] This costs Black the game.} (26... Ra6 $16) 27. f5 $18 {[%emt 0:00:44] White is clearly winning.} gxf5 {[%emt 0:00:03]} 28. Rxf5 {[%emt 0:00:09] Rcf1 is the strong threat.} Rh8 {[%emt 0:02:33]} 29. Rcf1 {[%emt 0:00:30]} Raf8 {[%emt 0:00:03] [#]} 30. Bg5 $1 {[%emt 0:07:15][%mdl 512] Weighted Error Value: White=0.09 (flawless) /Black=0.58.  Loses game:     	---       	Black=1      Mistake:       	White=1     	Black=2      Inaccurate:     	White=1     	Black=1      OK:         	White=5     	Black=7      Best:        	White=1     	---        Strong:       	White=2     	---        Brilliant:      	White=1     	---} 1-0